bitfinex/quotes_ETHUSD_20241009
["timestamp","ask_amount","ask_price","bid_price","bid_amount"]
[1728440509449,1.71795386,2459.1,2458.8,9.0634964]
[1728440509786,1.71795386,2459.1,2458.8,4.9964864]
[1728440510852,0.7634,2459.2,2458.9,4.06674]
[1728440515348,0.7634,2459.2,2459.0,4.06669]
[1728440516846,2.49785386,2459.4,2459.0,4.06669]
[1728440517046,2.49785386,2459.4,2459.0,8.13329]
[1728440517258,2.49785386,2459.4,2459.0,4.0666]
[1728440518791,1.71795386,2459.2,2459.0,4.0666]
[1728440519587,2.49785386,2459.4,2459.1,4.0664]
[1728440520593,2.49785386,2459.4,2459.0,4.97285664]
[1728440521287,2.49785386,2459.4,2459.0,9.03944664]
[1728440521488,2.49785386,2459.4,2459.1,4.06643]
[1728440521705,11.68500759,2459.7,2459.0,5.79035664]
[1728440521706,0.8266,2459.6,2459.3,4.0661]
[1728440521852,7.41461042,2459.7,2459.4,4.06594]
[1728440522055,16.41465,2460.3,2459.5,1.71795386]
[1728440522056,0.8266,2460.3,2459.5,1.71795386]
[1728440522266,0.8266,2460.3,2459.9,4.0652]
[1728440524604,10.05455714,2460.5,2459.9,4.06519]
[1728440524907,1.71795386,2460.3,2459.8,4.88624]
[1728440525109,1.71795386,2460.3,2459.8,5.781405]
[1728440525983,1.71795386,2460.3,2459.9,4.06518]
[1728440526371,1.92590714,2460.5,2459.9,4.06511]
[1728440526612,1.92590714,2460.5,2460.1,4.06486]
[1728440527869,1.92590714,2460.5,2460.0,0.5781175]
[1728440528382,1.71795386,2460.5,2460.0,0.5781175]
[1728440528784,5.78216386,2460.5,2460.0,0.5781175]
[1728440528980,5.78250386,2460.3,2460.0,0.5781175]
[1728440529306,1.71795386,2460.1,2459.7,4.06545]
[1728440529827,1.71795386,2460.1,2459.7,4.06543]
[1728440530132,0.8023,2460.3,2459.8,0.484863]
[1728440530133,6.58482386,2460.3,2459.8,0.484863]
[1728440530299,1.71795386,2460.1,2459.6,0.7832]
[1728440530503,1.71795386,2460.1,2459.6,4.84876]
[1728440531086,10.64946386,2460.3,2459.6,4.84876]
[1728440531523,4.06473,2460.2,2459.6,4.84876]
[1728440531732,6.58482386,2460.3,2459.7,4.956976]
[1728440532024,4.06474,2460.2,2459.7,0.891456]
[1728440532385,4.26401176,2460.7,2459.1,5.78441386]
[1728440532386,6.57026386,2459.9,2459.4,0.7825]
[1728440532590,6.57026386,2459.9,2459.4,4.06601]
[1728440532591,0.787,2459.9,2459.4,4.06601]
[1728440532830,4.85221,2459.9,2459.3,4.0661]
[1728440533000,0.787,2459.9,2459.4,0.48486]
[1728440533430,0.787,2459.9,2459.5,4.06586]
[1728440534013,0.787,2459.9,2459.4,0.48486]
[1728440534014,2.50495386,2459.9,2459.4,0.48486]
[1728440534935,2.50495386,2459.9,2459.3,4.06609]
[1728440534936,4.06547,2459.8,2459.3,4.06609]
[1728440536618,0.20000731,2459.7,2459.3,4.06609]
[1728440536941,0.7993,2459.6,2459.1,4.06642]
[1728440538053,4.86503,2459.6,2459.1,4.06642]
[1728440538206,5.94987612,2459.6,2459.1,4.06642]
[1728440538410,4.06607,2459.4,2458.9,4.0668]
[1728440538647,1.71795386,2459.4,2458.9,4.0668]
[1728440539206,5.78399386,2459.4,2458.9,4.0668]
[1728440539409,5.78399386,2459.4,2458.7,4.06709]
[1728440539410,1.71795386,2459.2,2458.7,4.06718]
[1728440539637,4.8603,2459.3,2458.7,4.06718]
[1728440539638,6.57825386,2459.3,2458.7,4.06718]
[1728440540041,6.57825386,2459.3,2458.7,8.13425]
[1728440540243,4.06638,2459.2,2458.6,0.8044]
[1728440540448,6.57825386,2459.3,2458.6,0.8044]
[1728440540449,4.06653,2459.1,2458.6,0.8044]
[1728440540986,6.57825386,2459.3,2458.6,4.87169]
[1728440541110,11.41974795,2459.3,2458.6,4.87169]
[1728440541310,7.35341795,2459.3,2458.6,0.8044]
[1728440541545,7.35341795,2459.3,2458.7,4.06718]
[1728440541746,4.06636,2459.2,2458.7,4.06718]
[1728440542421,11.41973795,2459.3,2458.7,4.06718]
[1728440542754,4.06638,2459.2,2458.6,0.8044]
[1728440543118,1.2593185,2459.2,2458.6,0.8044]
[1728440543317,1.2593185,2459.2,2458.7,4.06718]
[1728440544723,0.2056496,2459.1,2458.7,4.06718]
[1728440545985,6.57825386,2459.3,2458.7,4.06718]
[1728440545986,2.51195386,2459.3,2458.7,4.06704]
[1728440547027,0.794,2459.3,2458.7,4.554184]
[1728440547463,0.794,2459.3,2458.9,4.06683]
[1728440548172,1.00113612,2459.3,2458.7,4.554184]
[1728440548353,0.20713612,2459.3,2458.9,4.06684]
[1728440548570,0.20713612,2459.3,2459.0,4.83229]
[1728440548869,9.13256428,2459.6,2459.1,4.06643]
[1728440549028,1.71795386,2459.6,2459.1,4.06643]
[1728440549232,1.71795386,2459.6,2459.1,4.956319]
[1728440549427,0.20139366,2459.5,2459.1,4.956319]
[1728440550947,0.7512,2459.7,2459.1,4.956269]
[1728440551173,8.88543,2459.9,2459.4,0.8188]
[1728440551343,4.82008,2459.9,2459.4,1.307288]
[1728440552075,0.20818909,2459.8,2459.4,1.307288]
[1728440552553,5.99151295,2459.8,2459.4,1.307288]
[1728440552758,1.92614295,2459.8,2459.4,0.8188]
[1728440553757,4.82008,2459.9,2459.4,4.88476]
[1728440553977,4.82008,2459.9,2459.4,0.8188]
[1728440554674,4.82008,2459.9,2459.4,4.88479]
[1728440554838,0.95415576,2459.9,2459.4,4.88479]
[1728440555037,0.7861,2460.2,2459.7,4.0655]
[1728440555251,0.7861,2460.2,2459.8,0.7698]
[1728440556275,0.20025165,2460.1,2459.8,0.7698]
[1728440559298,4.06464,2460.3,2459.8,0.7698]
[1728440559467,4.06464,2460.3,2459.8,4.83514]
[1728440559661,4.06464,2460.3,2459.8,0.7698]
[1728440560273,0.20768346,2460.2,2459.8,0.7698]
[1728440560474,0.20768346,2460.2,2459.8,1.253323]
[1728440561102,4.06464,2460.3,2459.8,1.253323]
[1728440562907,4.27221604,2460.3,2459.8,1.253323]
[1728440564122,4.0648,2460.2,2459.8,1.253323]
[1728440564325,4.0648,2460.2,2459.8,0.7698]
[1728440564529,4.27221604,2460.3,2459.8,0.7698]
[1728440564723,4.06488,2460.1,2459.8,0.7698]
[1728440564927,4.06488,2460.1,2459.6,0.7784]
[1728440565223,4.06488,2460.1,2459.6,4.84409]
[1728440565426,4.27221604,2460.3,2459.7,0.890984]
[1728440565735,8.33689604,2460.3,2459.7,0.890984]
[1728440566091,4.06476,2460.2,2459.7,0.890984]
[1728440567536,8.33687604,2460.3,2459.7,4.956494]
[1728440567692,4.27221604,2460.3,2459.7,4.956494]
[1728440567892,4.06473,2460.2,2459.7,4.956494]
[1728440568531,4.06473,2460.2,2459.7,0.890984]
[1728440570932,0.7556,2460.2,2459.4,0.7784]
[1728440571149,4.06531,2459.9,2459.4,0.7784]
[1728440571646,8.13061,2459.9,2459.4,0.7784]
[1728440572347,8.13061,2459.9,2459.4,1.562857]
[1728440572750,8.13061,2459.9,2459.5,0.7897]
[1728440572751,4.0653,2459.9,2459.5,0.7897]
[1728440576961,8.1306,2459.9,2459.5,0.7897]
[1728440577158,4.0653,2459.9,2459.5,0.7897]
[1728440578339,4.0653,2459.9,2459.5,1.44689726]
[1728440578754,4.27215604,2460.3,2459.8,0.809]
[1728440580055,4.06458,2460.3,2459.8,0.809]
[1728440580255,4.06458,2460.3,2459.8,4.87435]
[1728440580554,4.06458,2460.3,2459.8,1.702979]
[1728440580791,4.06458,2460.3,2459.8,5.768309]
[1728440581086,0.7608,2460.4,2459.8,5.768309]
[1728440581251,4.27259158,2460.5,2460.0,0.78]
[1728440581458,8.33691158,2460.5,2460.0,0.78]
[1728440582094,4.27259158,2460.5,2460.0,0.78]
[1728440583090,4.06469,2460.3,2460.0,0.78]
[1728440586096,4.89006,2460.3,2459.8,5.769629]
[1728440586310,4.89006,2460.3,2459.8,1.704279]
[1728440586697,4.06525,2459.9,2459.5,0.8103]
[1728440587019,4.54284682,2460.3,2459.2,0.8103]
[1728440587020,4.06555,2459.7,2459.2,0.8103]
[1728440588018,8.13106,2459.8,2459.2,4.87662]
[1728440588311,4.06555,2459.7,2459.2,0.8103]
[1728440588901,8.13101,2459.8,2459.2,0.8103]
[1728440590303,4.06548,2459.8,2459.2,0.8103]
[1728440590499,4.06582,2459.6,2459.2,0.8103]
[1728440602809,4.06587,2459.5,2459.2,0.8103]
[1728440603749,4.06587,2459.5,2458.9,4.06673]
[1728440604036,4.06587,2459.5,2459.0,0.8151]
[1728440604339,8.93506,2459.6,2459.0,4.88177]
[1728440604503,4.86922,2459.6,2459.0,4.88177]
[1728440604927,4.86922,2459.6,2459.1,4.06652]
[1728440609954,4.86922,2459.6,2459.1,8.13295]
[1728440609955,0.8034,2459.6,2459.1,8.13295]
[1728440610108,0.8034,2459.6,2459.1,4.06643]
[1728440611926,0.8034,2459.6,2459.1,8.13285]
[1728440612138,0.8034,2459.6,2459.1,4.06642]
[1728440612818,4.26817865,2459.8,2459.3,4.06617]
[1728440613019,5.06267865,2459.8,2459.4,0.7606]
[1728440614160,4.85996,2459.8,2459.4,0.7606]
[1728440620078,1.71667774,2459.7,2459.2,0.7756]
[1728440620263,0.7549,2459.4,2459.0,0.7756]
[1728440620440,4.82102,2459.4,2458.8,4.06692]
[1728440620642,4.82102,2459.4,2458.8,4.89222]
[1728440621590,0.7549,2459.4,2458.9,4.06685]
[1728440623468,4.82096,2459.4,2458.9,4.06685]
[1728440623708,5.88130177,2459.4,2458.9,4.06685]
[1728440626589,1.81524177,2459.4,2458.9,4.06685]
[1728440626743,0.7549,2459.4,2458.9,4.06685]
[1728440627592,0.7549,2459.4,2458.9,8.13361]
[1728440627951,0.7549,2459.4,2458.9,4.06676]
[1728440628157,0.7549,2459.4,2458.9,8.13352]
[1728440628454,0.7549,2459.4,2458.9,4.06676]
[1728440629889,0.7549,2459.4,2458.9,8.13352]
[1728440630174,0.7549,2459.4,2458.9,4.06676]
[1728440631558,1.06012177,2459.4,2459.0,0.8002]
[1728440633173,1.06012177,2459.4,2459.0,4.86687]
[1728440633368,1.71667774,2459.5,2459.0,4.86687]
[1728440635093,4.71667774,2459.7,2459.2,0.8016]
[1728440635472,4.92441382,2459.9,2459.4,4.86762]
[1728440635685,0.7568,2460.0,2459.4,0.8016]
[1728440635888,1.71667774,2460.0,2459.6,4.06568]
[1728440636105,1.91940767,2460.0,2459.6,4.06568]
[1728440636266,1.91940767,2460.0,2459.5,4.85276]
[1728440636471,1.91940767,2460.0,2459.5,8.91862]
[1728440636807,1.71667774,2459.8,2459.5,0.7869]
[1728440638170,1.71667774,2459.8,2459.5,4.85272]
[1728440638866,5.98459767,2460.0,2459.5,4.85272]
[1728440639061,7.40289848,2460.0,2459.5,4.85272]
[1728440641263,7.40289848,2460.0,2459.5,0.7869]
[1728440641777,4.06521,2459.9,2459.5,0.7869]
[1728440642175,1.71667774,2459.8,2459.5,0.7869]
[1728440642899,5.68622074,2460.0,2459.5,4.85273]
[1728440642900,5.98459767,2460.0,2459.5,4.85273]
[1728440643405,5.78186774,2460.0,2459.5,4.85266]
[1728440644505,3.0,2460.1,2459.7,4.06543]
[1728440644805,4.0648,2460.2,2459.7,4.06543]
[1728440644806,4.0648,2460.2,2459.7,4.84863]
[1728440646011,5.78091774,2460.5,2459.8,4.06535]
[1728440646216,9.15537013,2460.6,2460.0,4.06494]
[1728440646440,1.71667774,2460.5,2460.0,4.06494]
[1728440647314,5.78092774,2460.5,2460.0,4.06494]
[1728440647509,5.09122013,2460.6,2460.0,4.06494]
[1728440647714,1.71667774,2460.5,2460.1,0.7745]
[1728440648500,5.78088774,2460.5,2460.1,0.7745]
[1728440649635,1.71667774,2460.3,2460.1,0.7745]
[1728440655674,2.46717774,2460.5,2460.1,0.7745]
[1728440655949,6.53138774,2460.5,2460.1,0.7745]
[1728440656157,4.06438,2460.4,2460.1,0.7745]
[1728440656513,1.71667774,2460.3,2460.1,0.7745]
[1728440659549,5.78122774,2460.3,2459.9,0.8201]
[1728440660431,1.71667774,2460.3,2459.9,0.8201]
[1728440660643,1.71667774,2460.3,2459.9,1.308636]
[1728440662156,5.78127774,2460.3,2459.9,1.308636]
[1728440662333,4.0652,2459.9,2459.5,0.8198]
[1728440662534,5.78187774,2459.9,2459.5,0.8198]
[1728440662846,4.0652,2459.9,2459.5,1.30839]
[1728440663740,5.78187774,2459.9,2459.5,0.8198]
[1728440664746,0.7723,2459.8,2459.5,0.8198]
[1728440664925,4.83777,2459.8,2459.5,0.8198]
[1728440665362,4.06547,2459.8,2459.5,0.8198]
[1728440666529,9.84723774,2459.9,2459.5,0.8198]
[1728440667428,4.06538,2459.8,2459.5,0.8198]
[1728440667654,5.78220774,2459.7,2459.2,0.8063]
[1728440667837,5.78220774,2459.7,2459.2,1.293573]
[1728440668459,4.06579,2459.6,2459.2,0.8063]
[1728440668626,10.61853774,2459.7,2459.2,0.8063]
[1728440668827,4.06572,2459.6,2459.2,0.8063]
[1728440669043,6.55290774,2459.7,2459.2,0.8063]
[1728440669363,4.06574,2459.6,2459.2,0.8063]
[1728440675564,6.75722824,2459.7,2459.2,0.8063]
[1728440675741,6.75722824,2459.7,2459.2,1.24660011]
[1728440675941,10.82291824,2459.7,2459.2,1.24660011]
[1728440676437,10.82291824,2459.7,2459.2,0.8063]
[1728440676640,4.06573,2459.6,2459.2,0.8063]
[1728440677683,1.71667774,2459.3,2459.0,0.7761]
[1728440677838,6.76782951,2459.3,2458.7,4.06708]
[1728440678038,1.71667774,2459.3,2458.9,4.90003]
[1728440678552,4.85405,2459.4,2458.9,4.90003]
[1728440678753,0.788,2459.4,2458.9,4.90003]
[1728440678978,5.78261774,2459.5,2458.9,4.06683]
[1728440679184,4.2699305,2459.7,2459.1,0.8332]
[1728440679340,5.98660824,2459.7,2459.2,4.06627]
[1728440680465,5.98660824,2459.7,2459.1,0.8332]
[1728440680681,1.71667774,2459.5,2459.1,0.8332]
[1728440680967,1.71667774,2459.5,2459.1,1.323175]
[1728440681470,5.78297774,2459.3,2458.9,0.8078]
[1728440683965,1.71667774,2459.3,2458.9,0.8078]
[1728440686401,5.78289774,2459.3,2458.9,0.8078]
[1728440694553,1.71667774,2459.3,2458.9,0.8078]
[1728440694735,4.06596,2459.5,2458.9,0.8078]
[1728440694940,0.7745,2459.6,2459.0,4.06656]
[1728440695252,3.0,2459.7,2459.2,8.13259]
[1728440695451,6.58614774,2459.8,2459.2,8.13259]
[1728440695452,6.58614774,2459.8,2459.3,0.7896]
[1728440695950,2.52077774,2459.8,2459.3,0.7896]
[1728440696241,6.58616774,2459.8,2459.3,4.85579]
[1728440696450,6.58616774,2459.8,2459.3,0.7896]
[1728440698621,2.52077774,2459.8,2459.3,0.7896]
[1728440698827,4.06553,2459.7,2459.3,0.7896]
[1728440701364,2.52947774,2460.0,2459.4,4.06603]
[1728440701564,4.71667774,2460.0,2459.5,4.87233]
[1728440701766,4.06539,2459.8,2459.5,0.8065]
[1728440702075,6.59486774,2459.8,2459.5,0.8065]
[1728440705282,1.71667774,2459.8,2459.5,0.8065]
[1728440705605,0.20485562,2460.1,2459.6,4.06569]
[1728440706162,0.20485562,2460.1,2459.6,8.13129]
[1728440706446,0.20485562,2460.1,2459.6,4.0656]
[1728440706808,6.53377774,2460.2,2459.7,4.86409]
[1728440706982,6.73738244,2460.2,2459.7,4.86409]
[1728440707477,6.73738244,2460.2,2459.7,5.8057831]
[1728440707478,1.71667774,2460.2,2459.7,5.8057831]
[1728440708068,5.78138774,2460.2,2459.7,5.8057831]
[1728440708697,1.71667774,2460.2,2459.7,5.8057831]
[1728440709613,4.06444,2460.4,2459.8,4.87584]
[1728440709773,4.06444,2460.4,2459.9,1.39235331]
[1728440710213,4.71667774,2460.5,2460.0,4.06502]
[1728440710415,1.71667774,2460.5,2460.1,0.8252]
[1728440711023,5.78088774,2460.5,2460.1,0.8252]
[1728440712096,4.06407,2460.6,2460.1,0.8252]
[1728440712298,3.0,2460.6,2460.1,4.88995]
[1728440713410,4.06381,2460.8,2460.2,0.8119]
[1728440713616,4.06376,2460.8,2460.5,0.8119]
[1728440714497,1.92283938,2460.9,2460.5,0.8119]
[1728440714738,5.98640938,2460.9,2460.5,0.8119]
[1728440715036,4.06349,2461.0,2460.5,0.8119]
[1728440715037,4.06314,2461.2,2460.5,4.06412]
[1728440715244,4.06314,2461.2,2460.7,4.06385]
[1728440715402,4.06314,2461.2,2460.8,0.8261]
[1728440715747,1.71667774,2461.1,2460.8,0.8261]
[1728440717339,5.77989774,2461.1,2460.8,0.8261]
[1728440717898,1.71667774,2461.1,2460.8,0.8261]
[1728440718845,5.77990774,2461.1,2460.8,0.8261]
[1728440721143,4.06314,2461.2,2460.8,0.8261]
[1728440721347,0.8224,2461.3,2460.8,1.315113]
[1728440721348,2.53907774,2461.3,2460.8,1.315113]
[1728440721585,4.06281,2461.4,2460.8,4.552633]
[1728440721800,1.71667774,2461.1,2460.9,0.8271]
[1728440721948,5.78025774,2460.9,2460.4,0.8271]
[1728440722469,4.06372,2460.8,2460.4,0.8271]
[1728440723183,4.06372,2460.8,2459.7,4.06547]
[1728440723184,4.06404,2460.6,2460.0,4.065]
[1728440723484,4.06404,2460.6,2460.1,0.7818]
[1728440724182,8.12821,2460.6,2460.1,0.7818]
[1728440724383,4.06404,2460.6,2460.1,0.7818]
[1728440727404,4.26923122,2460.6,2460.1,0.7818]
[1728440729077,4.06422,2460.5,2460.1,0.7818]
[1728440729983,4.26923122,2460.6,2460.1,0.7818]
[1728440731073,4.06404,2460.6,2460.1,4.84667]
[1728440731391,4.06404,2460.6,2460.1,0.7818]
[1728440733411,4.06404,2460.6,2460.1,4.84667]
[1728440733717,4.06404,2460.6,2460.1,0.7818]
[1728440736813,4.06404,2460.6,2460.1,4.84665]
[1728440737011,4.06404,2460.6,2460.1,5.737808]
[1728440737175,4.06404,2460.6,2460.1,1.672958]
[1728440737375,4.06404,2460.6,2460.1,4.84662]
[1728440738608,4.06404,2460.6,2460.1,0.7818]
[1728440739176,4.06404,2460.6,2460.1,4.84665]
[1728440740521,4.06404,2460.6,2460.1,0.7818]
[1728440745144,4.06404,2460.6,2460.1,4.84661]
[1728440745358,4.06404,2460.6,2460.1,5.737761]
[1728440746846,0.8269,2460.7,2460.2,4.06469]
[1728440749553,5.78048774,2460.8,2460.3,4.06452]
[1728440749854,3.7586,2461.1,2460.6,4.06404]
[1728440750076,3.0,2461.1,2460.7,0.7706]
[1728440751553,7.06324,2461.1,2460.7,0.7706]
[1728440752954,4.06339,2461.0,2460.7,0.7706]
[1728440753162,5.78006774,2461.0,2460.7,0.7706]
[1728440755057,9.84357774,2461.0,2460.7,0.7706]
[1728440755364,9.84354774,2461.0,2460.7,0.7706]
[1728440755577,5.78006774,2461.0,2460.7,0.7706]
[1728440756341,9.84355774,2461.0,2460.7,0.7706]
[1728440756540,5.78006774,2461.0,2460.7,0.7706]
[1728440756968,9.84358774,2461.0,2460.7,0.7706]
[1728440757272,5.78006774,2461.0,2460.7,0.7706]
[1728440757646,9.84358774,2461.0,2460.7,0.7706]
[1728440757858,5.78006774,2461.0,2460.7,0.7706]
[1728440758377,9.84357774,2461.0,2460.7,0.7706]
[1728440758574,5.78006774,2461.0,2460.7,0.7706]
[1728440760386,4.06358,2460.9,2460.7,0.7706]
[1728440763493,4.06371,2460.8,2460.7,0.7706]
[1728440763694,4.06392,2460.7,2460.5,0.7886]
[1728440766699,4.06437,2460.4,2460.3,0.7731]
[1728440766944,4.06476,2460.2,2459.9,0.7731]
[1728440767097,4.06476,2460.2,2459.7,1.15398343]
[1728440767098,5.78172774,2460.0,2459.7,1.15398343]
[1728440767294,9.84629774,2460.2,2459.7,0.7731]
[1728440767792,4.06489,2460.1,2459.7,0.7731]
[1728440768207,5.78143774,2460.2,2459.7,0.7731]
[1728440768405,9.84624774,2460.2,2459.7,0.7731]
[1728440768906,4.06493,2460.1,2459.7,0.7731]
[1728440769554,4.06505,2460.0,2459.7,0.7731]
[1728440771482,8.13018,2460.0,2459.7,0.7731]
[1728440771629,8.13018,2460.0,2459.4,4.06587]
[1728440771630,10.60686774,2460.0,2459.5,0.7601]
[1728440771838,6.54172774,2460.0,2459.5,0.7601]
[1728440772659,5.78205774,2459.8,2459.3,0.8306]
[1728440773163,9.84753774,2459.8,2459.3,0.8306]
[1728440773455,5.78205774,2459.8,2459.3,1.35833665]
[1728440774318,9.84752774,2459.8,2459.3,1.35833665]
[1728440775221,5.78205774,2459.8,2459.3,1.35833665]
[1728440776514,9.84752774,2459.8,2459.3,1.35833665]
[1728440776716,5.78205774,2459.8,2459.3,1.35833665]
[1728440778335,4.06571,2459.6,2459.3,0.8306]
[1728440780030,4.06591,2459.5,2459.3,0.8306]
[1728440780257,6.54158774,2459.6,2459.3,0.8306]
[1728440780565,10.60737774,2459.6,2459.3,0.8306]
[1728440781081,4.06571,2459.6,2459.3,0.8306]
[1728440781249,4.06546,2459.8,2459.3,0.8306]
[1728440782950,8.13093,2459.8,2459.3,0.8306]
[1728440783129,4.06546,2459.8,2459.3,0.8306]
[1728440783333,4.06562,2459.7,2459.3,0.8306]
[1728440784167,4.06571,2459.6,2459.3,0.8306]
[1728440785071,8.13151,2459.6,2459.3,0.8306]
[1728440785571,4.06571,2459.6,2459.3,0.8306]
[1728440785784,4.06544,2459.8,2459.3,0.8306]
[1728440786632,8.13091,2459.8,2459.3,0.8306]
[1728440787967,4.06544,2459.8,2459.3,0.8306]
[1728440788162,8.13093,2459.8,2459.3,1.320295]
[1728440789771,4.06544,2459.8,2459.3,1.320295]
[1728440789939,8.13091,2459.8,2459.3,1.320295]
[1728440791791,8.13093,2459.8,2459.3,1.320295]
[1728440793613,8.1309,2459.8,2459.3,1.320295]
[1728440793777,8.13094,2459.8,2459.3,1.320295]
[1728440794504,4.06544,2459.8,2459.3,1.320295]
[1728440795009,4.06583,2459.6,2459.3,0.8306]
[1728440795333,4.06615,2459.4,2458.9,0.7864]
[1728440795916,4.06615,2459.4,2458.9,4.85323]
[1728440796071,4.06615,2459.4,2459.1,0.7953]
[1728440797385,8.91909,2459.6,2459.1,0.7953]
[1728440799011,4.06589,2459.5,2459.1,0.7953]
[1728440801511,8.13164,2459.6,2459.1,0.7953]
[1728440801680,4.06578,2459.6,2459.1,0.7953]
[1728440801883,4.06578,2459.6,2459.1,1.3706971]
[1728440802617,4.06589,2459.5,2459.1,1.3706971]
[1728440803183,4.06578,2459.6,2459.1,1.3706971]
[1728440803482,8.13163,2459.6,2459.1,1.3706971]
[1728440803684,4.06578,2459.6,2459.1,1.3706971]
[1728440804879,4.06578,2459.6,2459.2,1.76799471]
[1728440805514,4.06546,2459.8,2459.3,0.8176]
[1728440806390,8.13092,2459.8,2459.3,0.8176]
[1728440806795,4.06555,2459.7,2459.3,0.8176]
[1728440807337,8.13092,2459.8,2459.3,0.8176]
[1728440807509,8.13092,2459.8,2459.3,1.40102347]
[1728440807693,4.06521,2459.9,2459.4,4.06591]
[1728440807889,4.06515,2460.0,2459.5,0.8202]
[1728440810540,4.0654,2459.8,2459.5,0.8202]
[1728440811921,4.0654,2459.8,2459.5,1.36717235]
[1728440812444,1.71667774,2459.9,2459.5,1.36717235]
[1728440812741,5.78190774,2459.9,2459.5,1.36717235]
[1728440813102,4.06538,2459.8,2459.5,1.36717235]
[1728440813326,4.06538,2459.8,2459.5,0.8202]
[1728440815132,8.13089,2459.8,2459.5,0.8202]
[1728440815653,4.06562,2459.7,2459.5,0.8202]
[1728440817914,4.06538,2459.8,2459.5,0.8202]
[1728440818163,4.83649,2459.6,2459.1,0.7823]
[1728440818467,5.78257774,2459.5,2459.1,0.7823]
[1728440819468,4.06636,2459.2,2458.9,2.13389314]
[1728440819635,4.06636,2459.2,2458.8,0.7627]
[1728440819959,8.13284,2459.2,2458.8,0.7627]
[1728440820171,8.13283,2459.2,2458.8,0.7627]
[1728440820460,4.06636,2459.2,2458.8,0.7627]
[1728440822366,4.06612,2459.4,2458.8,5.93286413]
[1728440822549,6.56945774,2459.6,2458.9,4.89105]
[1728440822725,5.78245774,2459.6,2459.0,4.06665]
[1728440822927,5.78245774,2459.6,2459.1,0.8242]
[1728440829185,4.06578,2459.6,2459.2,0.7996]
[1728440829477,4.06578,2459.6,2459.2,1.69287]
[1728440829691,4.85244,2459.8,2459.2,1.69287]
[1728440829863,4.06569,2459.7,2459.2,1.69287]
[1728440830860,4.06544,2459.8,2459.2,4.95952]
[1728440831059,4.06544,2459.8,2459.4,0.7797]
[1728440832207,4.06554,2459.7,2459.4,0.7797]
[1728440832902,4.06544,2459.8,2459.4,0.7797]
[1728440835778,4.06514,2460.0,2459.5,0.8022]
[1728440836508,8.13028,2460.0,2459.5,0.8022]
[1728440836714,8.13028,2460.0,2459.5,1.7452292]
[1728440837011,4.06522,2459.9,2459.5,1.7452292]
[1728440839581,4.06537,2459.8,2459.5,1.7452292]
[1728440839783,4.06537,2459.8,2459.5,0.8022]
[1728440841382,4.06556,2459.7,2459.5,0.8022]
[1728440841587,5.78223774,2459.7,2459.3,0.7765]
[1728440842797,4.06596,2459.5,2459.1,0.7765]
[1728440843121,1.71667774,2459.7,2459.1,0.7765]
[1728440843496,4.06546,2459.8,2459.2,4.84284]
[1728440843700,4.0657,2459.6,2459.2,0.7765]
[1728440844215,8.13149,2459.6,2459.2,0.7765]
[1728440844412,4.06588,2459.5,2459.2,0.7765]
[1728440844624,5.87891677,2459.6,2459.2,0.7765]
[1728440844792,4.06603,2459.4,2459.2,0.7765]
[1728440846496,4.8941,2459.6,2459.2,0.7765]
[1728440847087,4.06593,2459.5,2459.2,0.7765]
[1728440848327,4.06593,2459.5,2459.0,4.06669]
[1728440848328,4.06593,2459.5,2459.0,4.89679]
[1728440848503,4.06593,2459.5,2459.0,0.8301]
[1728440848703,4.06613,2459.4,2459.0,0.8301]
[1728440850125,4.0662,2459.3,2459.0,0.8301]
[1728440852999,6.44370851,2459.5,2459.0,0.8301]
[1728440853503,4.06624,2459.3,2459.0,0.8301]
[1728440853701,1.71667774,2459.1,2458.8,0.7686]
[1728440853905,4.06705,2458.8,2458.6,0.7686]
[1728440854122,4.06718,2458.7,2458.6,0.7686]
[1728440854303,4.06718,2458.7,2458.3,1.04444781]
[1728440854304,4.06718,2458.7,2458.4,0.7686]
[1728440854913,4.06705,2458.8,2458.4,0.7686]
[1728440856635,8.13417,2458.8,2458.4,0.7686]
[1728440856806,4.06705,2458.8,2458.4,0.7686]
[1728440857005,8.13419,2458.8,2458.4,0.7686]
[1728440857205,4.06705,2458.8,2458.4,0.7686]
[1728440859035,5.13537077,2458.8,2458.4,0.7686]
[1728440859336,5.78431774,2458.5,2458.3,0.4071]
[1728440859505,6.53561774,2458.5,2458.3,0.4071]
[1728440859711,10.60327774,2458.5,2458.3,0.4071]
[1728440859890,7.59594551,2458.5,2458.3,0.4071]
[1728440860097,7.59594551,2458.5,2458.0,0.8131]
[1728440860098,11.66356551,2458.5,2458.1,0.4071]
[1728440860297,7.59592551,2458.5,2458.1,0.4071]
[1728440860757,6.84462551,2458.5,2458.1,0.4071]
[1728440860927,5.78429774,2458.5,2458.1,0.4071]
[1728440861795,5.78429774,2458.5,2458.0,0.8131]
[1728440862019,1.71667774,2458.5,2458.0,4.88142]
[1728440862220,6.54273774,2458.7,2458.1,4.06818]
[1728440862501,6.54273774,2458.7,2458.1,4.96314]
[1728440862714,4.06736,2458.6,2458.1,0.89496]
[1728440866841,5.78419774,2458.5,2458.0,0.8131]
[1728440867639,4.06789,2458.3,2458.0,0.8131]
[1728440869743,4.0677,2458.4,2458.0,0.8131]
[1728440870606,4.06789,2458.3,2458.0,0.8131]
[1728440873006,4.06789,2458.3,2458.0,0.8131]
[1728440874549,4.06801,2458.2,2458.0,0.8131]
[1728440875852,4.06789,2458.3,2458.0,0.8131]
[1728440876562,4.06802,2458.2,2458.0,0.8131]
[1728440878716,4.06789,2458.3,2458.0,0.8131]
[1728440878960,8.13587,2458.3,2458.0,0.8131]
[1728440879161,8.13584,2458.3,2458.0,0.8131]
[1728440879364,4.06801,2458.2,2458.0,0.8131]
[1728440880425,4.06801,2458.2,2457.7,0.8062]
[1728440880646,4.06801,2458.2,2457.7,1.293711]
[1728440881251,0.8106,2458.4,2457.8,4.88176]